[Event "GrandPrix_29.05"]
[Site "Chess.com"]
[Date "2020.05.29"]
[Round "5"]
[White "Lion_DL"]
[Black "SavelievAlexei"]
[Result "1/2-1/2"]
[WhiteElo "2196"]
[BlackElo "2280"]
[TimeControl "600+2"]
[EndTime "11:32:44 PDT"]
[Termination "Game drawn by repetition"]

1. e4 {[%clk 0:10:01.9]} 1... c5 {[%clk 0:10:00]} 2. Nf3 {[%clk 0:10:01.8]} 2...
e6 {[%clk 0:10:01.6]} 3. d3 {[%clk 0:09:59.8]} 3... Nc6 {[%clk 0:09:58.6]} 4. g3
{[%clk 0:09:59.4]} 4... d5 {[%clk 0:09:59.2]} 5. Qe2 {[%clk 0:09:59.5]} 5...
Nge7 {[%clk 0:09:53.1]} 6. h4 {[%clk 0:09:52.1]} 6... b6 {[%clk 0:09:49.8]} 7.
Bg2 {[%clk 0:09:47.8]} 7... Bb7 {[%clk 0:09:50.2]} 8. h5 {[%clk 0:09:27.5]} 8...
h6 {[%clk 0:09:46.7]} 9. Bf4 {[%clk 0:08:35.7]} 9... Qd7 {[%clk 0:09:46]} 10. a4
{[%clk 0:07:22.1]} 10... dxe4 {[%clk 0:07:24.2]} 11. dxe4 {[%clk 0:07:11.5]}
11... Nd4 {[%clk 0:07:24.8]} 12. Nxd4 {[%clk 0:07:05.7]} 12... cxd4 {[%clk
0:07:26.7]} 13. Na3 {[%clk 0:06:22.9]} 13... Nc6 {[%clk 0:07:22.7]} 14. O-O
{[%clk 0:04:54.3]} 14... e5 {[%clk 0:07:09.2]} 15. Bd2 {[%clk 0:04:55.4]} 15...
Bc5 {[%clk 0:07:10.3]} 16. Kh2 {[%clk 0:04:40.7]} 16... Rd8 {[%clk 0:05:21.9]}
17. Bh3 {[%clk 0:04:30.3]} 17... Qe7 {[%clk 0:05:06.3]} 18. Qg4 {[%clk
0:04:20.9]} 18... Qf6 {[%clk 0:04:22.6]} 19. Nb5 {[%clk 0:02:21.2]} 19... O-O
{[%clk 0:03:22.8]} 20. Qf5 {[%clk 0:01:39.9]} 20... Qxf5 {[%clk 0:03:13.8]} 21.
Bxf5 {[%clk 0:01:39.5]} 21... Ne7 {[%clk 0:03:11.2]} 22. Nxa7 {[%clk 0:01:26.3]}
22... Nxf5 {[%clk 0:02:59.7]} 23. exf5 {[%clk 0:01:28.2]} 23... Be4 {[%clk
0:03:00.4]} 24. b4 {[%clk 0:01:14]} 24... Bd6 {[%clk 0:02:54.8]} 25. Nb5 {[%clk
0:01:11.8]} 25... Be7 {[%clk 0:01:58.4]} 26. Rfc1 {[%clk 0:00:52.5]} 26... Rb8
{[%clk 0:01:35.3]} 27. g4 {[%clk 0:00:43.3]} 27... Rfc8 {[%clk 0:01:34.5]} 28.
c3 {[%clk 0:00:33.6]} 28... d3 {[%clk 0:01:10.3]} 29. Re1 {[%clk 0:00:33.4]}
29... Bf3 {[%clk 0:01:02.4]} 30. Kg3 {[%clk 0:00:27.2]} 30... Be2 {[%clk
0:01:01.6]} 31. f3 {[%clk 0:00:20.5]} 31... Rc6 {[%clk 0:00:22.8]} 32. a5 {[%clk
0:00:15.1]} 32... bxa5 {[%clk 0:00:21]} 33. Rxa5 {[%clk 0:00:17]} 33... Bg5
{[%clk 0:00:20.7]} 34. Bxg5 {[%clk 0:00:13.7]} 34... hxg5 {[%clk 0:00:22.6]} 35.
Kf2 {[%clk 0:00:15]} 35... d2 {[%clk 0:00:09.4]} 36. Kxe2 {[%clk 0:00:16.3]}
36... dxe1=Q+ {[%clk 0:00:10.5]} 37. Kxe1 {[%clk 0:00:18.2]} 37... f6 {[%clk
0:00:05.7]} 38. Kd2 {[%clk 0:00:18.4]} 38... Rd8+ {[%clk 0:00:06.3]} 39. Kc2
{[%clk 0:00:19.4]} 39... Rc4 {[%clk 0:00:07.5]} 40. Ra7 {[%clk 0:00:16.3]} 40...
Rf4 {[%clk 0:00:06.6]} 41. Nc7 {[%clk 0:00:17.6]} 41... Rxf3 {[%clk 0:00:06.5]}
42. Ne6 {[%clk 0:00:18.8]} 42... Rc8 {[%clk 0:00:07.8]} 43. Rxg7+ {[%clk
0:00:18.2]} 43... Kh8 {[%clk 0:00:09]} 44. h6 {[%clk 0:00:17.5]} 44... Rcxc3+
{[%clk 0:00:05.3]} 45. Kd2 {[%clk 0:00:18.8]} 45... Ra3 {[%clk 0:00:04.5]} 46.
Nf8 {[%clk 0:00:16.4]} 46... Rfd3+ {[%clk 0:00:03.9]} 47. Kc2 {[%clk 0:00:17.1]}
47... Rdc3+ {[%clk 0:00:04.9]} 48. Kd2 {[%clk 0:00:17.8]} 48... Rd3+ {[%clk
0:00:06.2]} 49. Kc2 {[%clk 0:00:19.1]} 49... Rdc3+ {[%clk 0:00:07.6]} 50. Kd2
{[%clk 0:00:20.6]} 50... Rd3+ {[%clk 0:00:09]} 1/2-1/2

[Event "GrandPrix_29.05"]
[Site "Chess.com"]
[Date "2020.05.29"]
[Round "5"]
[White "MasterSonnevanck2"]
[Black "BlackBoarder"]
[Result "1-0"]
[WhiteElo "2072"]
[BlackElo "2120"]
[TimeControl "600+2"]
[EndTime "11:32:44 PDT"]
[Termination "MasterSonnevanck2 won by checkmate"]

1. d4 {[%clk 0:10:01.9]} 1... e6 {[%clk 0:09:59.6]} 2. c4 {[%clk 0:10:02.2]}
2... Nf6 {[%clk 0:09:59.6]} 3. Nc3 {[%clk 0:10:02.9]} 3... Bb4 {[%clk
0:09:59.6]} 4. f3 {[%clk 0:10:04.4]} 4... d5 {[%clk 0:09:58]} 5. a3 {[%clk
0:10:04.7]} 5... Bxc3+ {[%clk 0:09:58.7]} 6. bxc3 {[%clk 0:10:05.5]} 6... c5
{[%clk 0:09:59.9]} 7. cxd5 {[%clk 0:10:06.4]} 7... Nxd5 {[%clk 0:09:59.9]} 8.
dxc5 {[%clk 0:10:07.3]} 8... Qa5 {[%clk 0:10:00.1]} 9. e4 {[%clk 0:10:06.8]}
9... Nf6 {[%clk 0:09:58.7]} 10. Be3 {[%clk 0:10:05.6]} 10... O-O {[%clk
0:09:59.2]} 11. Qb3 {[%clk 0:10:02.5]} 11... Nfd7 {[%clk 0:09:51.3]} 12. Bb5
{[%clk 0:09:37.5]} 12... a6 {[%clk 0:09:15.5]} 13. Bxd7 {[%clk 0:08:52]} 13...
Nxd7 {[%clk 0:09:17.4]} 14. Qb4 {[%clk 0:08:52]} 14... Qc7 {[%clk 0:09:10.8]}
15. Ne2 {[%clk 0:08:50.6]} 15... Ne5 {[%clk 0:08:40.1]} 16. O-O {[%clk
0:08:13.9]} 16... Bd7 {[%clk 0:08:38.2]} 17. Rfd1 {[%clk 0:07:57.6]} 17... Rac8
{[%clk 0:08:15.4]} 18. a4 {[%clk 0:07:13.9]} 18... Bc6 {[%clk 0:07:55.3]} 19.
Rd6 {[%clk 0:07:01.1]} 19... f5 {[%clk 0:06:40.1]} 20. Bf4 {[%clk 0:05:32.4]}
20... Ng6 {[%clk 0:06:31]} 21. exf5 {[%clk 0:05:32.9]} 21... Rxf5 {[%clk
0:06:02.6]} 22. Bg3 {[%clk 0:05:04.8]} 22... e5 {[%clk 0:06:03.1]} 23. Qg4
{[%clk 0:03:42.9]} 23... Rcf8 {[%clk 0:05:32.7]} 24. h4 {[%clk 0:03:31.7]} 24...
Qf7 {[%clk 0:04:35.2]} 25. h5 {[%clk 0:03:12.4]} 25... Ne7 {[%clk 0:04:35.4]}
26. h6 {[%clk 0:02:55.5]} 26... g6 {[%clk 0:04:23.1]} 27. Rad1 {[%clk
0:02:44.1]} 27... Nd5 {[%clk 0:03:45.9]} 28. Bf2 {[%clk 0:01:46.9]} 28... Nf6
{[%clk 0:02:44.4]} 29. Rxf6 {[%clk 0:01:27.5]} 29... Rxf6 {[%clk 0:02:33.3]} 30.
Ng3 {[%clk 0:01:22.4]} 30... Qe6 {[%clk 0:02:20.9]} 31. Ne4 {[%clk 0:01:09.2]}
31... Bxe4 {[%clk 0:02:07.9]} 32. Qxe4 {[%clk 0:01:09.2]} 32... R6f7 {[%clk
0:01:59.1]} 33. Bg3 {[%clk 0:00:52.1]} 33... Rd7 {[%clk 0:01:36.7]} 34. Rxd7
{[%clk 0:00:40.4]} 34... Qxd7 {[%clk 0:01:38.6]} 35. Qxe5 {[%clk 0:00:31.9]}
35... Re8 {[%clk 0:01:38.9]} 36. Qf6 {[%clk 0:00:29.2]} 36... Re6 {[%clk
0:01:31.6]} 37. Qf4 {[%clk 0:00:28.7]} 37... Rc6 {[%clk 0:01:09.3]} 38. Bf2
{[%clk 0:00:29.2]} 38... Qe7 {[%clk 0:00:42.1]} 39. Bd4 {[%clk 0:00:28.3]} 39...
g5 {[%clk 0:00:38.4]} 40. Qb8+ {[%clk 0:00:25.5]} 40... Kf7 {[%clk 0:00:38.5]}
41. Bg7 {[%clk 0:00:18.4]} 41... Qxc5+ {[%clk 0:00:17.6]} 42. Kh1 {[%clk
0:00:16.6]} 42... Qe7 {[%clk 0:00:09.6]} 43. Qh8 {[%clk 0:00:10.8]} 43... Kg6
{[%clk 0:00:08.1]} 44. Qg8 {[%clk 0:00:10.9]} 44... Qe6 {[%clk 0:00:04.9]} 45.
Qd8 {[%clk 0:00:09.9]} 45... Qd6 {[%clk 0:00:03.3]} 46. Qe8+ {[%clk 0:00:10.2]}
46... Kf5 {[%clk 0:00:04.7]} 47. Qe4# {[%clk 0:00:10.5]} 1-0

[Event "GrandPrix_29.05"]
[Site "Chess.com"]
[Date "2020.05.29"]
[Round "5"]
[White "dosto07"]
[Black "A_N_D-R_E_I"]
[Result "0-1"]
[WhiteElo "1974"]
[BlackElo "2065"]
[TimeControl "600+2"]
[EndTime "11:32:53 PDT"]
[Termination "A_N_D-R_E_I won on time"]

1. e4 {[%clk 0:10:01.9]} 1... c5 {[%clk 0:09:56.8]} 2. Nf3 {[%clk 0:09:51]} 2...
Nc6 {[%clk 0:09:57.4]} 3. Bb5 {[%clk 0:09:47.9]} 3... g6 {[%clk 0:09:58.2]} 4.
O-O {[%clk 0:09:46]} 4... Bg7 {[%clk 0:09:59.6]} 5. c3 {[%clk 0:09:46.7]} 5...
Nf6 {[%clk 0:10:01]} 6. e5 {[%clk 0:09:43.7]} 6... Nd5 {[%clk 0:10:00.8]} 7. d4
{[%clk 0:09:45]} 7... cxd4 {[%clk 0:09:58.8]} 8. cxd4 {[%clk 0:09:45.8]} 8...
O-O {[%clk 0:09:58.7]} 9. Nc3 {[%clk 0:09:45.3]} 9... Nxc3 {[%clk 0:09:46.4]}
10. bxc3 {[%clk 0:09:45.1]} 10... d5 {[%clk 0:09:48]} 11. h3 {[%clk 0:08:33.4]}
11... Bd7 {[%clk 0:09:45.5]} 12. Bd3 {[%clk 0:08:29]} 12... a6 {[%clk
0:09:45.3]} 13. Bf4 {[%clk 0:08:05.3]} 13... Na5 {[%clk 0:09:39.9]} 14. Qd2
{[%clk 0:07:49.3]} 14... Rc8 {[%clk 0:09:01.4]} 15. Bh6 {[%clk 0:07:41.6]} 15...
Nc4 {[%clk 0:08:59.5]} 16. Qf4 {[%clk 0:07:27]} 16... Re8 {[%clk 0:06:32.1]} 17.
Bxg7 {[%clk 0:06:41.2]} 17... Kxg7 {[%clk 0:06:32.9]} 18. h4 {[%clk 0:06:41.2]}
18... h5 {[%clk 0:06:27.8]} 19. Ng5 {[%clk 0:06:33.4]} 19... Rf8 {[%clk
0:05:10.8]} 20. Rab1 {[%clk 0:06:24.4]} 20... b5 {[%clk 0:05:08.3]} 21. Rfe1
{[%clk 0:06:05.9]} 21... Qb6 {[%clk 0:04:34]} 22. Bxc4 {[%clk 0:04:28.2]} 22...
Rxc4 {[%clk 0:04:32.8]} 23. Re3 {[%clk 0:04:18.3]} 23... Bf5 {[%clk 0:04:31]}
24. Rbe1 {[%clk 0:03:26.7]} 24... Qc7 {[%clk 0:03:00.3]} 25. Rg3 {[%clk
0:02:33.4]} 25... Rxc3 {[%clk 0:01:54.7]} 26. Rxc3 {[%clk 0:01:46.2]} 26... Qxc3
{[%clk 0:01:54.6]} 27. Rc1 {[%clk 0:01:46.7]} 27... Qa5 {[%clk 0:01:45.4]} 28.
e6 {[%clk 0:01:36.5]} 28... fxe6 {[%clk 0:01:21.3]} 29. Qe5+ {[%clk 0:01:18.4]}
29... Rf6 {[%clk 0:01:14]} 30. Rc7 {[%clk 0:01:11.4]} 30... Qb4 {[%clk
0:01:10.6]} 31. Rc8 {[%clk 0:00:50.9]} 31... Qd6 {[%clk 0:00:17.1]} 32. Qe3
{[%clk 0:00:30.2]} 32... Rf8 {[%clk 0:00:13]} 33. Qc1 {[%clk 0:00:23.3]} 33...
Qd7 {[%clk 0:00:11]} 34. Rc7 {[%clk 0:00:20.8]} 34... Qd6 {[%clk 0:00:11.3]} 35.
Rc6 {[%clk 0:00:15.8]} 35... Qd7 {[%clk 0:00:12.5]} 36. Qc5 {[%clk 0:00:14.9]}
36... Kf6 {[%clk 0:00:06.1]} 37. f3 {[%clk 0:00:10]} 37... Rb8 {[%clk
0:00:05.4]} 38. Kf2 {[%clk 0:00:07.6]} 38... Bd3 {[%clk 0:00:06.2]} 39. Ke3
{[%clk 0:00:06.2]} 39... Bf5 {[%clk 0:00:06.8]} 40. Kf4 {[%clk 0:00:04.5]} 40...
b4 {[%clk 0:00:07]} 41. g4 {[%clk 0:00:04.8]} 41... hxg4 {[%clk 0:00:08.2]} 42.
fxg4 {[%clk 0:00:04.5]} 42... Rb5 {[%clk 0:00:09.5]} 43. Qc1 {[%clk 0:00:03.8]}
43... Bd3 {[%clk 0:00:08.8]} 44. Nh7+ {[%clk 0:00:03.8]} 44... Kg7 {[%clk
0:00:09.6]} 45. Ng5 {[%clk 0:00:04.2]} 45... Bc4 {[%clk 0:00:10.5]} 46. Kg3
{[%clk 0:00:04.9]} 46... Qxc6 {[%clk 0:00:11]} 47. Qf4 {[%clk 0:00:04.9]} 47...
Qd6 {[%clk 0:00:11.9]} 0-1

[Event "GrandPrix_29.05"]
[Site "Chess.com"]
[Date "2020.05.29"]
[Round "5"]
[White "Anton_Demchenko"]
[Black "Chessialist"]
[Result "1/2-1/2"]
[WhiteElo "2604"]
[BlackElo "2547"]
[TimeControl "600+2"]
[EndTime "11:32:55 PDT"]
[Termination "Game drawn by repetition"]

1. d4 {[%clk 0:09:59.9]} 1... Nf6 {[%clk 0:09:59.8]} 2. Nf3 {[%clk 0:09:59]}
2... d5 {[%clk 0:09:57.5]} 3. Bf4 {[%clk 0:09:58.5]} 3... c6 {[%clk 0:09:54.8]}
4. e3 {[%clk 0:09:59.1]} 4... Bf5 {[%clk 0:09:55.6]} 5. c4 {[%clk 0:09:59.4]}
5... e6 {[%clk 0:09:56.9]} 6. Qb3 {[%clk 0:09:58.6]} 6... b6 {[%clk 0:08:37.9]}
7. Nc3 {[%clk 0:09:49.8]} 7... Bd6 {[%clk 0:08:38.2]} 8. Bg5 {[%clk 0:09:36]}
8... Nbd7 {[%clk 0:08:28]} 9. Be2 {[%clk 0:09:35.9]} 9... O-O {[%clk 0:08:27.6]}
10. O-O {[%clk 0:09:35.7]} 10... h6 {[%clk 0:08:27.9]} 11. Bh4 {[%clk
0:09:35.9]} 11... Qb8 {[%clk 0:07:55]} 12. Bg3 {[%clk 0:08:55.2]} 12... a5
{[%clk 0:07:25.5]} 13. a3 {[%clk 0:08:24]} 13... Bxg3 {[%clk 0:07:18.9]} 14.
hxg3 {[%clk 0:08:23.5]} 14... Ne4 {[%clk 0:07:19.9]} 15. Nxe4 {[%clk 0:07:51.8]}
15... Bxe4 {[%clk 0:07:19.6]} 16. Nd2 {[%clk 0:07:48.1]} 16... Bg6 {[%clk
0:07:19.8]} 17. Rac1 {[%clk 0:07:41.4]} 17... Qd6 {[%clk 0:07:19.8]} 18. Rfd1
{[%clk 0:07:16.1]} 18... Rab8 {[%clk 0:07:07]} 19. Qc3 {[%clk 0:06:50.2]} 19...
Nf6 {[%clk 0:06:27.5]} 20. b4 {[%clk 0:06:24.5]} 20... axb4 {[%clk 0:06:25.6]}
21. axb4 {[%clk 0:06:26.4]} 21... Qe7 {[%clk 0:05:11.3]} 22. Qb2 {[%clk
0:05:33.6]} 22... Rfc8 {[%clk 0:04:37]} 23. Ra1 {[%clk 0:04:53.7]} 23... Ne4
{[%clk 0:03:14.2]} 24. Nxe4 {[%clk 0:04:28.8]} 24... Bxe4 {[%clk 0:03:14.1]} 25.
Ra6 {[%clk 0:04:11.3]} 25... dxc4 {[%clk 0:03:05.7]} 26. Bxc4 {[%clk 0:04:09.6]}
26... Bd5 {[%clk 0:03:06.9]} 27. Qc3 {[%clk 0:02:37.5]} 27... Bxc4 {[%clk
0:02:42.8]} 28. Qxc4 {[%clk 0:02:37.9]} 28... e5 {[%clk 0:02:44.1]} 29. dxe5
{[%clk 0:02:22.3]} 29... b5 {[%clk 0:02:11.3]} 30. Qc5 {[%clk 0:01:21.4]} 30...
Qxc5 {[%clk 0:02:10.1]} 31. bxc5 {[%clk 0:01:23.3]} 31... b4 {[%clk 0:02:11.5]}
32. Rb1 {[%clk 0:01:21.2]} 32... Rb5 {[%clk 0:02:12.2]} 33. f4 {[%clk
0:00:50.1]} 33... b3 {[%clk 0:02:11.7]} 34. Rb2 {[%clk 0:00:50.8]} 34... Rxc5
{[%clk 0:01:37.1]} 35. Rxb3 {[%clk 0:00:50.4]} 35... Rc2 {[%clk 0:01:38.8]} 36.
Rab6 {[%clk 0:00:43]} 36... Rd8 {[%clk 0:01:32.2]} 37. Rb8 {[%clk 0:00:41.3]}
37... Rxb8 {[%clk 0:01:32.7]} 38. Rxb8+ {[%clk 0:00:42.3]} 38... Kh7 {[%clk
0:01:34.6]} 39. g4 {[%clk 0:00:37.6]} 39... g6 {[%clk 0:01:01.5]} 40. Rb7 {[%clk
0:00:35.9]} 40... Kg8 {[%clk 0:01:01.6]} 41. Kh2 {[%clk 0:00:32.6]} 41... c5
{[%clk 0:01:02.5]} 42. Kg3 {[%clk 0:00:33.4]} 42... c4 {[%clk 0:01:02.9]} 43.
Rc7 {[%clk 0:00:31.3]} 43... c3 {[%clk 0:01:01.7]} 44. Kf3 {[%clk 0:00:25.4]}
44... Rc1 {[%clk 0:01:01.8]} 45. Ke4 {[%clk 0:00:24.8]} 45... c2 {[%clk
0:00:59.5]} 46. g3 {[%clk 0:00:14.3]} 46... Rg1 {[%clk 0:00:53.9]} 47. Rxc2
{[%clk 0:00:12.5]} 47... Rxg3 {[%clk 0:00:55.2]} 48. Rh2 {[%clk 0:00:09.8]}
48... Kg7 {[%clk 0:00:46]} 49. Rh4 {[%clk 0:00:07.7]} 49... g5 {[%clk
0:00:45.7]} 50. Rh1 {[%clk 0:00:08.6]} 50... Rxg4 {[%clk 0:00:45.5]} 51. Ra1
{[%clk 0:00:05]} 51... Rg2 {[%clk 0:00:42.9]} 52. Ra7 {[%clk 0:00:05.5]} 52...
Kg8 {[%clk 0:00:43.9]} 53. f5 {[%clk 0:00:04.5]} 53... Rf2 {[%clk 0:00:44.1]}
54. Ra8+ {[%clk 0:00:05.3]} 54... Kg7 {[%clk 0:00:41.6]} 55. Ra7 {[%clk
0:00:07.2]} 55... Kg8 {[%clk 0:00:42.3]} 56. Ra8+ {[%clk 0:00:08.5]} 56... Kg7
{[%clk 0:00:43.6]} 57. Ra7 {[%clk 0:00:10]} 57... Kg8 {[%clk 0:00:44.7]} 1/2-1/2

[Event "GrandPrix_29.05"]
[Site "Chess.com"]
[Date "2020.05.29"]
[Round "5"]
[White "LazovT"]
[Black "LuckyLuka04"]
[Result "0-1"]
[WhiteElo "2044"]
[BlackElo "2215"]
[TimeControl "600+2"]
[EndTime "11:32:56 PDT"]
[Termination "LuckyLuka04 won by resignation"]

1. e4 {[%clk 0:10:01.9]} 1... c5 {[%clk 0:09:59.4]} 2. Nc3 {[%clk 0:09:58.6]}
2... e6 {[%clk 0:09:59.2]} 3. Nf3 {[%clk 0:09:59.2]} 3... a6 {[%clk 0:09:59.5]}
4. d4 {[%clk 0:10:00.6]} 4... cxd4 {[%clk 0:10:00.9]} 5. Nxd4 {[%clk 0:10:02.5]}
5... b5 {[%clk 0:10:01.8]} 6. Bd3 {[%clk 0:10:02.9]} 6... Qb6 {[%clk 0:10:02.9]}
7. Nb3 {[%clk 0:09:31.1]} 7... Qc7 {[%clk 0:10:02.6]} 8. O-O {[%clk 0:09:26.6]}
8... Bb7 {[%clk 0:10:04]} 9. Qe2 {[%clk 0:09:18.1]} 9... b4 {[%clk 0:09:54.4]}
10. Nd1 {[%clk 0:08:48.8]} 10... Nf6 {[%clk 0:09:49]} 11. c3 {[%clk 0:08:46]}
11... Nc6 {[%clk 0:09:23.4]} 12. cxb4 {[%clk 0:07:30]} 12... Bxb4 {[%clk
0:09:14.3]} 13. Bg5 {[%clk 0:07:25]} 13... Be7 {[%clk 0:08:33.5]} 14. Rc1 {[%clk
0:07:21.4]} 14... O-O {[%clk 0:08:17.9]} 15. Ne3 {[%clk 0:07:09.9]} 15... Rac8
{[%clk 0:07:22.9]} 16. Rfd1 {[%clk 0:06:23.5]} 16... Qb8 {[%clk 0:07:03.5]} 17.
Bxa6 {[%clk 0:04:44.7]} 17... Nxe4 {[%clk 0:05:07.6]} 18. Bxe7 {[%clk
0:04:17.2]} 18... Nxe7 {[%clk 0:04:51.8]} 19. Bxb7 {[%clk 0:04:17.8]} 19... Qxb7
{[%clk 0:04:49.7]} 20. f3 {[%clk 0:04:19.3]} 20... Nf6 {[%clk 0:04:45.3]} 21.
Nc5 {[%clk 0:03:46.4]} 21... Qa7 {[%clk 0:04:14.2]} 22. b4 {[%clk 0:03:45.7]}
22... Ned5 {[%clk 0:03:44.5]} 23. Nxd5 {[%clk 0:03:29]} 23... Nxd5 {[%clk
0:03:46.4]} 24. Qa6 {[%clk 0:03:30.4]} 24... Qxa6 {[%clk 0:03:09.1]} 25. Nxa6
{[%clk 0:03:32.3]} 25... Nc3 {[%clk 0:03:10.1]} 26. Rxc3 {[%clk 0:03:18.3]}
26... Rxc3 {[%clk 0:03:12]} 27. Rxd7 {[%clk 0:03:19.1]} 27... Rc1+ {[%clk
0:02:09.6]} 28. Kf2 {[%clk 0:03:19.7]} 28... Rc2+ {[%clk 0:02:11.5]} 29. Kg3
{[%clk 0:03:10.3]} 29... Rxa2 {[%clk 0:02:11.3]} 30. b5 {[%clk 0:03:11.9]} 30...
Rb2 {[%clk 0:02:07.8]} 31. Rb7 {[%clk 0:03:03.3]} 31... h5 {[%clk 0:01:54]} 32.
Nc5 {[%clk 0:02:35.8]} 32... Rc8 {[%clk 0:01:44.7]} 33. Nd3 {[%clk 0:02:25.1]}
33... Rd2 {[%clk 0:01:10.4]} 34. Ne5 {[%clk 0:02:25.1]} 34... Rcc2 {[%clk
0:01:05.4]} 35. Nxf7 {[%clk 0:01:49.6]} 35... Rxg2+ {[%clk 0:00:56.1]} 36. Kf4
{[%clk 0:01:50.8]} 36... Rc4+ {[%clk 0:00:46.3]} 37. Ke3 {[%clk 0:01:51.5]}
37... Rb4 {[%clk 0:00:23.5]} 38. Nd6 {[%clk 0:00:50.8]} 38... Rxh2 {[%clk
0:00:21.5]} 39. b6 {[%clk 0:00:33.1]} 39... Rhb2 {[%clk 0:00:22.5]} 40. Rb8+
{[%clk 0:00:34.3]} 40... Kh7 {[%clk 0:00:23.7]} 41. b7 {[%clk 0:00:36.2]} 41...
h4 {[%clk 0:00:24.7]} 42. f4 {[%clk 0:00:15.2]} 42... h3 {[%clk 0:00:25]} 43.
Nf7 {[%clk 0:00:15.2]} 43... Rxb7 {[%clk 0:00:17.7]} 44. Rh8+ {[%clk 0:00:15.3]}
44... Kg6 {[%clk 0:00:18]} 45. Ne5+ {[%clk 0:00:17.2]} 45... Kf6 {[%clk
0:00:14.8]} 46. Ng4+ {[%clk 0:00:05.4]} 46... Kf5 {[%clk 0:00:14.3]} 47. Ne5
{[%clk 0:00:03.8]} 47... R7b3+ {[%clk 0:00:11.2]} 48. Nd3 {[%clk 0:00:04.2]}
48... Rxd3+ {[%clk 0:00:10.6]} 49. Kxd3 {[%clk 0:00:05.4]} 49... Kxf4 {[%clk
0:00:11.7]} 0-1

[Event "GrandPrix_29.05"]
[Site "Chess.com"]
[Date "2020.05.29"]
[Round "5"]
[White "Shota_Azaladze"]
[Black "tsvet2005"]
[Result "0-1"]
[WhiteElo "2203"]
[BlackElo "2259"]
[TimeControl "600+2"]
[EndTime "11:32:58 PDT"]
[Termination "tsvet2005 won by checkmate"]

1. Nf3 {[%clk 0:10:01.9]} 1... d5 {[%clk 0:10:00.9]} 2. g3 {[%clk 0:10:02.3]}
2... c6 {[%clk 0:10:02.2]} 3. Bg2 {[%clk 0:10:03.4]} 3... Bg4 {[%clk 0:10:03.8]}
4. O-O {[%clk 0:10:04.6]} 4... Nd7 {[%clk 0:10:03.8]} 5. d3 {[%clk 0:10:05.6]}
5... Ngf6 {[%clk 0:10:04.3]} 6. Nbd2 {[%clk 0:10:06.6]} 6... e5 {[%clk
0:10:05.4]} 7. e4 {[%clk 0:10:07.5]} 7... Bd6 {[%clk 0:10:06.5]} 8. h3 {[%clk
0:10:07.8]} 8... Bh5 {[%clk 0:10:06.6]} 9. exd5 {[%clk 0:10:08.4]} 9... cxd5
{[%clk 0:10:07.3]} 10. c4 {[%clk 0:10:09.3]} 10... O-O {[%clk 0:09:58.4]} 11.
cxd5 {[%clk 0:10:09.8]} 11... Nxd5 {[%clk 0:09:59]} 12. Qb3 {[%clk 0:10:10.2]}
12... N5b6 {[%clk 0:09:36.9]} 13. Ne4 {[%clk 0:10:10.1]} 13... Be7 {[%clk
0:09:35.8]} 14. a4 {[%clk 0:09:59.5]} 14... a5 {[%clk 0:08:09.1]} 15. Be3 {[%clk
0:09:58]} 15... Kh8 {[%clk 0:08:06.3]} 16. Rfc1 {[%clk 0:08:08.1]} 16... f5
{[%clk 0:06:23.1]} 17. Nc5 {[%clk 0:08:00.4]} 17... Nxc5 {[%clk 0:05:56.2]} 18.
Bxc5 {[%clk 0:08:02.3]} 18... Bxc5 {[%clk 0:05:57.7]} 19. Rxc5 {[%clk 0:08:02]}
19... Bf7 {[%clk 0:05:59.1]} 20. Qc3 {[%clk 0:07:28.3]} 20... e4 {[%clk
0:05:13.1]} 21. dxe4 {[%clk 0:07:24.2]} 21... Nxa4 {[%clk 0:05:12.5]} 22. Rxa4
{[%clk 0:06:58.6]} 22... Qd1+ {[%clk 0:05:11.3]} 23. Kh2 {[%clk 0:06:42]} 23...
Qxa4 {[%clk 0:05:12.3]} 24. Rxf5 {[%clk 0:06:10.7]} 24... Bg6 {[%clk 0:04:59.1]}
25. Rxf8+ {[%clk 0:04:20.4]} 25... Rxf8 {[%clk 0:05:01]} 26. Ne5 {[%clk
0:04:07.7]} 26... Qb4 {[%clk 0:03:24.5]} 27. Qc2 {[%clk 0:04:01.2]} 27... Qd6
{[%clk 0:03:13.4]} 28. f4 {[%clk 0:03:59.5]} 28... b5 {[%clk 0:02:53.4]} 29. Qe2
{[%clk 0:03:27.8]} 29... Rb8 {[%clk 0:02:13.2]} 30. h4 {[%clk 0:02:41.7]} 30...
a4 {[%clk 0:02:08.7]} 31. Qc2 {[%clk 0:02:05.1]} 31... Be8 {[%clk 0:02:02.8]}
32. Nd3 {[%clk 0:01:52]} 32... Qc6 {[%clk 0:01:50.2]} 33. Qf2 {[%clk 0:01:34.7]}
33... b4 {[%clk 0:01:38.4]} 34. Qd4 {[%clk 0:01:30.8]} 34... Qb6 {[%clk
0:01:20.3]} 35. Qc4 {[%clk 0:01:22.8]} 35... a3 {[%clk 0:01:17.2]} 36. Qb3
{[%clk 0:01:12.7]} 36... axb2 {[%clk 0:01:09.6]} 37. Nxb2 {[%clk 0:01:04.4]}
37... Qd4 {[%clk 0:01:06.3]} 38. e5 {[%clk 0:00:43.2]} 38... Qc3 {[%clk
0:01:02.2]} 39. Qa2 {[%clk 0:00:44]} 39... Qa3 {[%clk 0:00:36.6]} 40. Qe6 {[%clk
0:00:39.2]} 40... b3 {[%clk 0:00:09.9]} 41. Nc4 {[%clk 0:00:16.7]} 41... Qc5
{[%clk 0:00:10.6]} 42. Bd5 {[%clk 0:00:17.1]} 42... Bh5 {[%clk 0:00:04.4]} 43.
g4 {[%clk 0:00:17.7]} 43... Bxg4 {[%clk 0:00:04.7]} 44. Qxg4 {[%clk 0:00:13.3]}
44... Qxd5 {[%clk 0:00:05.7]} 45. Nd6 {[%clk 0:00:13.1]} 45... b2 {[%clk
0:00:05.2]} 46. Qd7 {[%clk 0:00:11]} 46... b1=Q {[%clk 0:00:04.5]} 47. Nf7+
{[%clk 0:00:10.9]} 47... Qxf7 {[%clk 0:00:05.5]} 48. Qxf7 {[%clk 0:00:12.8]}
48... Rb2+ {[%clk 0:00:06.5]} 49. Kg3 {[%clk 0:00:13.8]} 49... Qd3+ {[%clk
0:00:06.4]} 50. Kg4 {[%clk 0:00:13.7]} 50... Rg2+ {[%clk 0:00:07.3]} 51. Kh5
{[%clk 0:00:15]} 51... Qg6+ {[%clk 0:00:08.8]} 52. Qxg6 {[%clk 0:00:15.8]} 52...
hxg6# {[%clk 0:00:10.7]} 0-1